fUSD/lending_fUSD_20240116
["ID","MTS","AMOUNT","RATE_DAILY","PERIOD"]
[311776442,1705385448366,-640.03387074,0.00022148,2]
[311776444,1705385448375,-512.42,0.00022148,2]
[311776446,1705385448384,-500.0,0.00022148,2]
[311776448,1705385448393,-516.51737236,0.00022148,2]
[311776450,1705385448403,-500.0,0.00022148,2]
[311776452,1705385448412,-500.0,0.00022148,2]
[311776454,1705385448421,-500.0,0.00022148,2]
[311776456,1705385448430,-513.50542825,0.00022148,2]
[311776458,1705385448439,-500.0,0.00022148,2]
[311776459,1705385448449,-500.0,0.00022148,2]
[311776462,1705385448458,-500.0,0.00022148,2]
[311776464,1705385448467,-510.9194084,0.00022148,2]
[311776466,1705385448476,-500.0,0.00022148,2]
[311776468,1705385448485,-528.03,0.00022148,2]
[311776469,1705385448494,-513.22745239,0.00022148,2]
[311776472,1705385448503,-510.55809254,0.00022148,2]
[311776473,1705385448512,-500.0,0.00022148,2]
[311776475,1705385448521,-521.77,0.00022148,2]
[311776478,1705385448531,-614.53,0.00022148,2]
[311776480,1705385448540,-500.0,0.00022148,2]
[311776482,1705385448550,-500.0,0.00022148,2]
[311776483,1705385448559,-500.0,0.00022148,2]
[311776485,1705385448568,-500.0,0.00022148,2]
[311776488,1705385448578,-521.46839465,0.00022148,2]
[311776490,1705385448586,-500.0,0.00022148,2]
[311776492,1705385448597,-500.0,0.00022148,2]
[311776494,1705385448607,-648.66,0.00022148,2]
[311776496,1705385448616,-500.0,0.00022148,2]
[311776498,1705385448625,-500.0,0.00022148,2]
[311776500,1705385448634,-500.0,0.00022148,2]
[311776502,1705385448642,-500.0,0.00022148,2]
[311776504,1705385448651,-500.0,0.00022149,2]
[311776506,1705385448660,-500.0,0.00022149,2]
[311776508,1705385448669,-500.0,0.00022149,2]
[311776510,1705385448677,-500.0,0.00022149,2]
[311776512,1705385448686,-811.25,0.00022149,2]
[311776514,1705385448695,-500.0,0.00022149,2]
[311776516,1705385448705,-512.04883807,0.00022149,2]
[311776517,1705385448713,-500.0,0.00022149,2]
[311776518,1705385448722,-508.59321616,0.00022149,2]
[311776519,1705385448731,-500.0,0.00022149,2]
[311776520,1705385448740,-500.0,0.00022149,2]
[311776521,1705385448749,-1031.73,0.00022149,2]
[311776522,1705385448758,-500.0,0.00022149,2]
[311776523,1705385448767,-575.33,0.00022149,2]
[311776524,1705385448776,-581.93,0.00022149,2]
[311776526,1705385448786,-500.0,0.00022149,2]
[311776528,1705385448795,-1008.36,0.00022149,2]
[311776530,1705385448803,-943.09,0.00022149,2]
[311776532,1705385448812,-794.72,0.00022149,2]
[311776534,1705385448822,-1197.26,0.00022149,2]
[311776536,1705385448831,-500.0,0.00022149,2]
[311776537,1705385448840,-662.61,0.00022149,2]
[311776539,1705385448849,-567.63,0.00022149,2]
[311776541,1705385448858,-1059.88,0.00022149,2]
[311776543,1705385448867,-601.13,0.00022149,2]
[311776546,1705385448877,-693.4,0.00022149,2]
[311776548,1705385448886,-608.26,0.00022149,2]
[311776550,1705385448896,-565.83,0.00022149,2]
[311776552,1705385448905,-872.62,0.00022149,2]
[311776554,1705385448914,-500.0,0.00022149,2]
[311776555,1705385448923,-784.69,0.00022149,2]
[311776557,1705385448932,-567.61,0.00022149,2]
[311776559,1705385448942,-748.92,0.00022149,2]
[311776561,1705385448951,-895.91,0.00022149,2]
[311776563,1705385448961,-500.0,0.00022149,2]
[311776566,1705385448973,-531.83,0.00022149,2]
[311776567,1705385448983,-672.24,0.00022149,2]
[311776569,1705385448992,-581.46,0.00022149,2]
[311776572,1705385449001,-1433.83,0.00022149,2]
[311776573,1705385449012,-885.61,0.00022149,2]
[311776575,1705385449022,-983.53,0.00022149,2]
[311776578,1705385449031,-1059.65,0.00022149,2]
[311776580,1705385449041,-799.55,0.00022149,2]
[311776582,1705385449051,-513.57768795,0.00022149,2]
[311776584,1705385449061,-890.62,0.00022149,2]
[311776585,1705385449070,-817.86,0.00022149,2]
[311776588,1705385449079,-500.0,0.00022149,2]
[311776590,1705385449089,-500.0,0.00022149,2]
[311776592,1705385449098,-3556.98,0.00022149,2]
[311776593,1705385449107,-740.72,0.00022149,2]
[311776595,1705385449116,-648.78,0.00022149,2]
[311776596,1705385449126,-2402.87,0.00022149,2]
[311776597,1705385449135,-568.91,0.00022149,2]
[311776598,1705385449144,-500.0,0.00022149,2]
[311776599,1705385449153,-500.0,0.00022149,2]
[311776600,1705385449163,-500.0,0.00022149,2]
[311776601,1705385449172,-713.16,0.00022149,2]
[311776602,1705385449182,-500.0,0.00022149,2]
[311776603,1705385449191,-506.86127937,0.00022149,2]
[311776604,1705385449200,-582.25,0.00022149,2]
[311776605,1705385449210,-861.5,0.00022149,2]
[311776606,1705385449219,-503.25,0.00022149,2]
[311776607,1705385449229,-527.13,0.00022149,2]
[311776608,1705385449238,-500.0,0.00022149,2]
[311776609,1705385449247,-523.83,0.00022149,2]
[311776610,1705385449256,-500.0,0.00022149,2]
[311776611,1705385449265,-1010.67,0.00022149,2]
[311776612,1705385449275,-500.0,0.00022149,2]
[311776613,1705385449286,-520.76,0.00022149,2]
[311776614,1705385449295,-517.14989164,0.00022149,2]
[311776615,1705385449304,-815.32,0.00022149,2]
[311776616,1705385449314,-1100.25,0.00022149,2]
[311776617,1705385449324,-500.0,0.00022149,2]
[311776618,1705385449333,-500.0,0.0002215,2]
[311776619,1705385449343,-500.0,0.0002215,2]
[311776620,1705385449353,-500.0,0.0002215,2]
[311776621,1705385449362,-500.0,0.0002215,2]
[311776622,1705385449371,-937.12,0.0002215,2]
[311776623,1705385449381,-500.0,0.0002215,2]
[311776624,1705385449391,-531.89,0.0002215,2]
[311776625,1705385449400,-479.98222053,0.0002215,2]
[311776626,1705385449410,-500.0,0.0002215,2]
[311776627,1705385449420,-500.0,0.0002215,2]
[311776628,1705385449429,-500.0,0.0002215,2]
[311776629,1705385449439,-500.0,0.0002215,2]
[311776630,1705385449449,-500.0,0.0002215,2]
[311776631,1705385449459,-500.0,0.0002215,2]
[311776632,1705385449468,-500.0,0.0002215,2]
[311776633,1705385449478,-500.0,0.0002215,2]
[311776634,1705385449487,-500.0,0.0002215,2]
[311776635,1705385449496,-500.0,0.0002215,2]
[311776636,1705385449505,-500.0,0.0002215,2]
[311776637,1705385449515,-500.0,0.0002215,2]
[311776638,1705385449523,-500.0,0.0002215,2]
[311776639,1705385449533,-500.0,0.0002215,2]
[311776640,1705385449542,-500.0,0.0002215,2]
[311776641,1705385449551,-500.0,0.0002215,2]
[311776642,1705385449561,-500.0,0.0002215,2]
[311776643,1705385449571,-500.0,0.0002215,2]
[311776644,1705385449581,-500.0,0.0002215,2]
[311776645,1705385449590,-500.0,0.0002215,2]
[311776646,1705385449599,-500.0,0.00022151,2]
[311776647,1705385449609,-500.0,0.00022151,2]
[311776648,1705385449618,-455.82771289,0.00022151,2]
[311776649,1705385449628,-172.92789734,0.00022151,2]
[311776650,1705385449637,-172.92789734,0.00022159,2]
[311776651,1705385449648,-172.92789734,0.00022168,2]
[311776652,1705385449658,-172.92789734,0.00022176,2]
[311776653,1705385449668,-172.92789734,0.00022184,2]
[311776654,1705385449678,-172.92789734,0.00022192,2]
[311776655,1705385449689,-172.92789734,0.000222,2]
[311776656,1705385449698,-221.0018898,0.000222,2]
[311776657,1705385449709,-487.38757581,0.000222,2]
[311776658,1705385449719,-1255.11169178,0.000222,2]
[311776659,1705385449730,-159.51,0.00022229,2]
[311776660,1705385449741,-159.17,0.00022236,2]
[311776661,1705385449751,-1284.72149989,0.00022243,2]
[311776662,1705385449762,-157.14,0.00022285,2]
[311776663,1705385449771,-500.0,0.00022299,2]
[311776664,1705385449781,-500.0,0.00022299,2]
[311776665,1705385449791,-500.0,0.00022299,2]
[311776666,1705385449802,-1294781.26217596,0.00022299,2]
[311776667,1705385449811,-505534.28686793,0.000223,2]
[311776668,1705385449821,-1161.84,0.000223,2]
[311776669,1705385449830,-419.76,0.0002235,2]
[311776670,1705385449840,-159.51,0.00022396,2]
[311776671,1705385449849,-159.17,0.00022415,2]
[311776672,1705385449858,-164.50091049,0.0002242,2]
[311776673,1705385449868,-499.99,0.0002242,2]
[311776674,1705385449877,-207.66013193,0.0002242,2]
[311776675,1705385449887,-500.0,0.0002242,2]
[311776676,1705385449898,-836.6,0.0002242,2]
[311776677,1705385449907,-3098.79,0.0002242,2]
[311776678,1705385449916,-1287.34,0.0002242,2]
[311776679,1705385449926,-1234.93,0.0002242,2]
[311776680,1705385449936,-973.39,0.0002242,2]
[311776681,1705385449945,-713.91,0.0002242,2]
[311776682,1705385449955,-500.0,0.0002242,2]
[311776683,1705385449965,-1730.47,0.0002242,2]
[311776684,1705385449974,-2927.87,0.0002242,2]
[311776685,1705385449984,-9055.71,0.0002242,2]
[311776686,1705385449994,-16763.67,0.0002242,2]
[311776687,1705385450003,-1214.66,0.0002242,2]
[311776688,1705385450012,-2255.35,0.0002242,2]
[311776689,1705385450021,-1265.76,0.0002242,2]
[311776690,1705385450030,-1147.92,0.0002242,2]
[311776691,1705385450040,-791.13,0.0002242,2]
[311776692,1705385450049,-1014.02,0.0002242,2]
[311776693,1705385450059,-4858.62,0.0002242,2]
[311776694,1705385450068,-696.87,0.0002242,2]
[311776695,1705385450078,-500.0,0.0002242,2]
[311776696,1705385450087,-500.0,0.0002242,2]
[311776697,1705385450097,-546.68,0.0002242,2]
[311776698,1705385450106,-1132.27,0.0002242,2]
[311776699,1705385450116,-526.47471532,0.0002242,2]
[311776700,1705385450126,-1390.33,0.0002242,2]
[311776701,1705385450136,-500.0,0.0002242,2]
[311776702,1705385450145,-1235.03,0.0002242,2]
[311776703,1705385450155,-500.0,0.0002242,2]
[311776704,1705385450164,-500.0,0.0002242,2]
[311776705,1705385450174,-779.65,0.0002242,2]
[311776706,1705385450183,-1124.57,0.0002242,2]
[311776707,1705385450193,-594.47,0.0002242,2]
[311776708,1705385450203,-829.87,0.0002242,2]
[311776709,1705385450212,-962.26,0.0002242,2]
[311776710,1705385450222,-500.0,0.0002242,2]
[311776711,1705385450231,-1124.9,0.0002242,2]
[311776712,1705385450241,-10780.83,0.0002242,2]
[311776713,1705385450250,-2935.41,0.0002242,2]
[311776714,1705385450261,-874.03,0.0002242,2]
[311776715,1705385450270,-782.01,0.0002242,2]
[311776716,1705385450280,-571.22,0.0002242,2]
[311776717,1705385450289,-500.0,0.0002242,2]
[311776718,1705385450299,-669.97,0.0002242,2]
[311776719,1705385450308,-1114.36,0.0002242,2]
[311776720,1705385450317,-968.54,0.0002242,2]
[311776721,1705385450326,-1582.72,0.0002242,2]
[311776722,1705385450337,-852.25,0.0002242,2]
[311776723,1705385450347,-500.0,0.0002242,2]
[311776724,1705385450356,-979.04,0.0002242,2]
[311776725,1705385450365,-657.16,0.0002242,2]
[311776726,1705385450375,-1642.19,0.0002242,2]
[311776727,1705385450385,-1195.9,0.0002242,2]
[311776728,1705385450395,-500.0,0.0002242,2]
[311776729,1705385450404,-606.27,0.0002242,2]
[311776730,1705385450414,-500.0,0.0002242,2]
[311776731,1705385450423,-685.55,0.0002242,2]
[311776732,1705385450433,-864.86,0.0002242,2]
[311776733,1705385450443,-1416.9,0.0002242,2]
[311776734,1705385450453,-500.0,0.0002242,2]
[311776735,1705385450463,-528.37,0.0002242,2]
[311776736,1705385450474,-864.83,0.0002242,2]
[311776737,1705385450484,-1830.12,0.0002242,2]
[311776738,1705385450494,-595.6,0.0002242,2]
[311776739,1705385450503,-500.0,0.0002242,2]
[311776740,1705385450513,-681.17,0.0002242,2]
[311776741,1705385450523,-2071.14,0.0002242,2]
[311776742,1705385450532,-17936.95872812,0.00022421,2]
[311776743,1705385450542,-500.0,0.00022421,2]
[311776744,1705385450551,-777.47,0.00022421,2]
[311776745,1705385450561,-500.0,0.00022421,2]
[311776746,1705385450570,-581.69,0.00022421,2]
[311776747,1705385450579,-500.0,0.00022421,2]
[311776748,1705385450588,-559.38,0.00022421,2]
[311776749,1705385450599,-500.0,0.00022421,2]
[311776750,1705385450608,-500.0,0.00022421,2]
[311776751,1705385450618,-749.27,0.00022421,2]
[311776752,1705385450627,-566.44,0.00022421,2]
[311776753,1705385450637,-500.0,0.00022421,2]
[311776754,1705385450646,-511.67578181,0.00022421,2]
[311776755,1705385450656,-603.94,0.00022421,2]
[311776756,1705385450677,-500.0,0.00022421,2]
[311776757,1705385450686,-831.93,0.00022421,2]
[311776758,1705385450695,-500.0,0.00022421,2]
[311776759,1705385450704,-537.08923523,0.00022421,2]
[311776760,1705385450714,-500.0,0.00022421,2]
[311776761,1705385450723,-273.35555813,0.00022421,2]
[311776762,1705385450733,-500.0,0.00022421,2]
[311776763,1705385450742,-500.0,0.00022421,2]
[311776764,1705385450752,-500.0,0.00022421,2]
[311776765,1705385450761,-500.0,0.00022421,2]
[311776766,1705385450770,-500.0,0.00022421,2]
[311776767,1705385450780,-500.0,0.00022421,2]
[311776768,1705385450790,-500.0,0.00022421,2]
[311776769,1705385450799,-500.0,0.00022421,2]
[311776770,1705385450808,-500.0,0.00022421,2]
[311776771,1705385450818,-179.55106228,0.00022421,2]
[311776772,1705385450827,-1035.05,0.00022421,2]
[311776773,1705385450837,-500.0,0.00022421,2]
[311776774,1705385450847,-660.74,0.00022421,2]
[311776775,1705385450857,-500.0,0.00022421,2]
[311776776,1705385450866,-500.0,0.00022421,2]
[311776777,1705385450876,-510.15648782,0.00022421,2]
[311776778,1705385450885,-449.42854464,0.00022421,2]
[311776779,1705385450895,-500.0,0.00022421,2]
[311776780,1705385450904,-840.37,0.00022421,2]
[311776781,1705385450914,-582.74,0.00022421,2]
[311776782,1705385450923,-500.0,0.00022421,2]
[311776783,1705385450933,-462.49028069,0.00022421,2]
[311776784,1705385450943,-585.48,0.00022421,2]
[311776785,1705385450953,-500.0,0.00022421,2]
[311776786,1705385451050,-500.0,0.00022421,2]
[311776787,1705385451099,-500.0,0.00022421,2]
[311776788,1705385451110,-557.08,0.00022421,2]
[311776789,1705385451120,-500.0,0.00022421,2]
[311776790,1705385451130,-500.0,0.00022421,2]
[311776791,1705385451140,-743.54,0.00022421,2]
[311776792,1705385451150,-500.0,0.00022421,2]
[311776793,1705385451160,-500.0,0.00022421,2]
[311776794,1705385451170,-500.0,0.00022421,2]
[311776795,1705385451180,-500.0,0.00022421,2]
[311776796,1705385451190,-561.37,0.00022421,2]
[311776797,1705385451199,-500.0,0.00022421,2]
[311776798,1705385451209,-500.0,0.00022421,2]
[311776799,1705385451219,-500.0,0.00022421,2]
[311776800,1705385451229,-500.0,0.00022421,2]
[311776801,1705385451238,-745.28,0.00022421,2]
[311776802,1705385451248,-500.0,0.00022421,2]
[311776803,1705385451258,-413.35747275,0.00022421,2]
[311776804,1705385451268,-599.0,0.00022421,2]
[311776805,1705385451279,-500.0,0.00022421,2]
[311776806,1705385451290,-500.0,0.00022421,2]
[311776807,1705385451301,-500.0,0.00022421,2]
[311776808,1705385451311,-512.92,0.00022421,2]
[311776809,1705385451322,-500.0,0.00022421,2]
[311776810,1705385451333,-500.0,0.00022421,2]
[311776811,1705385451343,-522.85,0.00022421,2]
[311776812,1705385451354,-500.0,0.00022421,2]
[311776813,1705385451364,-583.92,0.00022421,2]
[311776814,1705385451374,-2063.09,0.00022421,2]
[311776815,1705385451384,-500.0,0.00022421,2]
[311776816,1705385451393,-500.0,0.00022421,2]
[311776817,1705385451403,-500.0,0.00022421,2]
[311776818,1705385451412,-500.0,0.00022421,2]
[311776819,1705385451422,-553.91,0.00022421,2]
[311776820,1705385451432,-500.0,0.00022421,2]
[311776821,1705385451441,-524.28,0.00022421,2]
[311776822,1705385451451,-500.0,0.00022421,2]
[311776823,1705385451462,-500.0,0.00022421,2]
[311776824,1705385451471,-500.0,0.00022421,2]
[311776825,1705385451481,-500.0,0.00022421,2]
[311776826,1705385451491,-546.70637326,0.00022421,2]
[311776827,1705385451501,-500.0,0.00022421,2]
[311776828,1705385451511,-1212.98,0.00022421,2]
[311776829,1705385451520,-1245.77,0.00022421,2]
[311776830,1705385451530,-500.0,0.00022421,2]
[311776831,1705385451540,-655.96,0.00022421,2]
[311776832,1705385451549,-500.0,0.00022421,2]
[311776833,1705385451558,-500.0,0.00022421,2]
[311776834,1705385451568,-500.0,0.00022421,2]
[311776835,1705385451577,-500.0,0.00022421,2]
[311776836,1705385451587,-617.89,0.00022421,2]
[311776837,1705385451598,-507.6,0.00022421,2]
[311776838,1705385451607,-500.0,0.00022421,2]
[311776839,1705385451618,-500.0,0.00022421,2]
[311776840,1705385451628,-500.0,0.00022421,2]
[311776841,1705385451637,-590.42,0.00022421,2]
[311776842,1705385451647,-500.0,0.00022421,2]
[311776843,1705385451656,-500.0,0.00022421,2]
[311776844,1705385451666,-700.13,0.00022421,2]
[311776845,1705385451675,-554.9,0.00022421,2]
[311776846,1705385451684,-500.0,0.00022421,2]
[311776847,1705385451693,-500.0,0.00022421,2]
[311776848,1705385451704,-500.0,0.00022421,2]
[311776849,1705385451713,-665.91,0.00022421,2]
[311776850,1705385451723,-500.0,0.00022421,2]
[311776851,1705385451734,-995.38,0.00022421,2]
[311776852,1705385451743,-500.0,0.00022421,2]
[311776853,1705385451753,-1138.13,0.00022421,2]
[311776854,1705385451763,-504.68,0.00022421,2]
[311776855,1705385451773,-500.0,0.00022421,2]
[311776856,1705385451782,-500.0,0.00022421,2]
[311776857,1705385451793,-500.0,0.00022421,2]
[311776858,1705385451803,-500.0,0.00022421,2]
[311776859,1705385451813,-500.0,0.00022421,2]
[311776860,1705385451822,-869.31,0.00022421,2]
[311776861,1705385451831,-500.0,0.00022421,2]
[311776862,1705385451840,-628.28,0.00022421,2]
[311776863,1705385451850,-551.54,0.00022421,2]
[311776864,1705385451859,-500.0,0.00022421,2]
[311776865,1705385451869,-500.0,0.00022421,2]
[311776866,1705385451878,-500.0,0.00022421,2]
[311776867,1705385451887,-500.0,0.00022421,2]
[311776868,1705385451897,-500.0,0.00022421,2]
[311776869,1705385451906,-500.0,0.00022421,2]
[311776870,1705385451915,-500.0,0.00022421,2]
[311776871,1705385451925,-570.74,0.00022421,2]
[311776872,1705385451935,-500.0,0.00022421,2]
[311776873,1705385451947,-513.99426196,0.00022421,2]
[311776874,1705385451958,-500.0,0.00022421,2]
[311776875,1705385451969,-500.0,0.00022421,2]
[311776876,1705385451978,-527.8,0.00022421,2]
[311776877,1705385451987,-500.0,0.00022421,2]
[311776878,1705385451997,-452.46742809,0.00022421,2]
[311776879,1705385452007,-726.48,0.00022421,2]
[311776880,1705385452016,-944.67,0.00022421,2]
[311776881,1705385452026,-181.31801891,0.00022421,2]
[311776882,1705385452035,-2138.4,0.00022421,2]
[311776883,1705385452045,-500.0,0.00022421,2]
[311776884,1705385452056,-572.87,0.00022421,2]
[311776885,1705385452065,-500.0,0.00022421,2]
[311776886,1705385452074,-500.0,0.00022421,2]
[311776887,1705385452085,-500.0,0.00022421,2]
[311776888,1705385452094,-525.13,0.00022421,2]
[311776889,1705385452104,-500.0,0.00022421,2]
[311776890,1705385452113,-500.0,0.00022421,2]
[311776891,1705385452122,-500.0,0.00022421,2]
[311776892,1705385452132,-512.11937855,0.00022421,2]
[311776893,1705385452141,-500.0,0.00022421,2]
[311776894,1705385452151,-500.0,0.00022421,2]
[311776895,1705385452161,-500.0,0.00022421,2]
[311776896,1705385452170,-609.41,0.00022421,2]
[311776897,1705385452180,-500.0,0.00022421,2]
[311776898,1705385452189,-500.0,0.00022421,2]
[311776899,1705385452199,-468.9790765,0.00022421,2]
[311776900,1705385452208,-591.81,0.00022421,2]
[311776901,1705385452217,-916.9,0.00022421,2]
[311776902,1705385452227,-500.0,0.00022421,2]
[311776903,1705385452237,-500.0,0.00022421,2]
[311776904,1705385452248,-504.75,0.00022421,2]
[311776905,1705385452257,-500.0,0.00022421,2]
[311776906,1705385452268,-500.0,0.00022421,2]
[311776907,1705385452277,-500.0,0.00022421,2]
[311776908,1705385452286,-700.35,0.00022421,2]
[311776909,1705385452296,-582.2,0.00022421,2]
[311776910,1705385452305,-500.0,0.00022421,2]
[311776911,1705385452314,-500.0,0.00022421,2]
[311776912,1705385452324,-500.0,0.00022421,2]
[311776913,1705385452335,-500.0,0.00022421,2]
[311776914,1705385452345,-585.12,0.00022421,2]
[311776915,1705385452355,-975.84,0.00022421,2]
[311776916,1705385452364,-1096.33,0.00022421,2]
[311776917,1705385452374,-500.0,0.00022421,2]
[311776918,1705385452383,-500.0,0.00022421,2]
[311776919,1705385452394,-500.0,0.00022421,2]
[311776920,1705385452405,-533.55,0.00022421,2]
[311776921,1705385452415,-500.0,0.00022421,2]
[311776922,1705385452424,-1008.9,0.00022421,2]
[311776923,1705385452434,-500.0,0.00022421,2]
[311776924,1705385452444,-500.0,0.00022421,2]
[311776925,1705385452454,-500.0,0.00022421,2]
[311776926,1705385452464,-500.0,0.00022421,2]
[311776927,1705385452473,-500.0,0.00022421,2]
[311776928,1705385452483,-500.0,0.00022421,2]
[311776929,1705385452492,-500.0,0.00022421,2]
[311776930,1705385452502,-500.0,0.00022421,2]
[311776931,1705385452512,-858.93,0.00022421,2]
[311776932,1705385452521,-500.0,0.00022421,2]
[311776933,1705385452532,-582.55,0.00022421,2]
[311776934,1705385452542,-517.43,0.00022421,2]
[311776935,1705385452554,-500.0,0.00022421,2]
[311776936,1705385452565,-500.0,0.00022421,2]
[311776937,1705385452576,-540.52,0.00022421,2]
[311776938,1705385452585,-515.94,0.00022421,2]
[311776939,1705385452594,-500.0,0.00022421,2]
[311776940,1705385452603,-503.71935695,0.00022421,2]
[311776941,1705385452613,-205.28,0.00022421,2]
[311776942,1705385452622,-500.0,0.00022421,2]
[311776943,1705385452631,-500.0,0.00022421,2]
[311776944,1705385452641,-500.0,0.00022421,2]
[311776945,1705385452651,-500.0,0.00022421,2]
[311776946,1705385452661,-705.99,0.00022421,2]
[311776947,1705385452670,-500.0,0.00022421,2]
[311776948,1705385452679,-500.0,0.00022421,2]
[311776949,1705385452689,-2753.22,0.00022421,2]
[311776950,1705385452699,-500.0,0.00022421,2]
[311776951,1705385452709,-569.63,0.00022421,2]
[311776952,1705385452719,-500.0,0.00022421,2]
[311776953,1705385452729,-500.0,0.00022421,2]
[311776954,1705385452739,-500.0,0.00022421,2]
[311776955,1705385452748,-500.0,0.00022421,2]
[311776956,1705385452758,-1598.23,0.00022421,2]
[311776957,1705385452767,-500.0,0.00022421,2]
[311776958,1705385452777,-500.0,0.00022421,2]
[311776959,1705385452787,-645.81,0.00022421,2]
[311776960,1705385452796,-1656.48,0.00022421,2]
[311776961,1705385452806,-494.43025649,0.00022421,2]
[311776962,1705385452816,-500.0,0.00022421,2]
[311776963,1705385452825,-584.03,0.00022421,2]
[311776964,1705385452836,-521.15,0.00022421,2]
[311776965,1705385452849,-500.0,0.00022421,2]
[311776966,1705385452859,-500.0,0.00022421,2]
[311776967,1705385452868,-2925.29,0.00022421,2]
[311776968,1705385452877,-559.17,0.00022421,2]
[311776969,1705385452886,-1124.15,0.00022421,2]
[311776970,1705385452895,-604.5,0.00022421,2]
[311776971,1705385452906,-500.0,0.00022421,2]
[311776972,1705385452915,-500.0,0.00022421,2]
[311776973,1705385452928,-565.7,0.00022421,2]
[311776974,1705385452938,-500.0,0.00022421,2]
[311776975,1705385452949,-500.0,0.00022421,2]
[311776976,1705385452958,-464.53987022,0.00022421,2]
[311776977,1705385452969,-1133.39,0.00022421,2]
[311776978,1705385452978,-500.0,0.00022421,2]
[311776979,1705385452988,-521.05093664,0.00022421,2]
[311776980,1705385452997,-500.0,0.00022421,2]
[311776981,1705385453008,-522.53,0.00022421,2]
[311776982,1705385453018,-500.0,0.00022421,2]
[311776983,1705385453028,-500.0,0.00022421,2]
[311776984,1705385453037,-997.35,0.00022421,2]
[311776985,1705385453049,-564.64,0.00022421,2]
[311776986,1705385453059,-500.0,0.00022421,2]
[311776987,1705385453069,-153.09,0.00022421,2]
[311776988,1705385453079,-3104.57,0.00022421,2]
[311776989,1705385453089,-5765.19,0.00022421,2]
[311776990,1705385453100,-612.54056813,0.00022421,2]
[311776991,1705385453110,-500.0,0.00022421,2]
[311776992,1705385453119,-520.18464914,0.00022421,2]
[311776993,1705385453129,-486.72423186,0.00022421,2]
[311776994,1705385453432,-1250.15,0.00022421,2]
[311776995,1705385453459,-500.0,0.00022421,2]
[311776996,1705385453469,-1112.47,0.00022421,2]
[311776997,1705385453479,-532.49416571,0.00022421,2]
[311776998,1705385453489,-567.48616831,0.00022421,2]
[311776999,1705385453497,-500.0,0.00022421,2]
[311777000,1705385453508,-515.61812384,0.00022421,2]
[311777001,1705385453517,-984.52,0.00022421,2]
[311777002,1705385453526,-524.63401969,0.00022421,2]
[311777003,1705385453536,-663.89,0.00022421,2]
[311777004,1705385453545,-500.0,0.00022421,2]
[311777005,1705385453554,-500.0,0.00022421,2]
[311777006,1705385453564,-519.38239936,0.00022421,2]
[311777007,1705385453573,-500.0,0.00022421,2]
[311777008,1705385453582,-500.0,0.00022421,2]
[311777009,1705385453592,-1012.75,0.00022421,2]
[311777010,1705385453602,-500.0,0.00022421,2]
[311777011,1705385453611,-500.0,0.00022421,2]
[311777012,1705385453621,-500.0,0.00022421,2]
[311777013,1705385453630,-785.93,0.00022421,2]